bitfinex/quotes_BTCUSD_20250620
["timestamp","ask_amount","ask_price","bid_price","bid_amount"]
[1750445353173,0.50188581,103430.0,103420.0,0.29035344]
[1750445353385,0.6952533,103430.0,103420.0,0.29035344]
[1750445353810,0.22237204,103430.0,103420.0,0.26018619]
[1750445354050,0.6855854,103430.0,103420.0,0.005]
[1750445354265,6.0351374,103430.0,103420.0,0.005]
[1750445354902,6.0351374,103430.0,103420.0,0.003]
[1750445355111,0.0096693,103420.0,103410.0,0.24174914]
[1750445355329,0.47288266,103420.0,103410.0,0.30274914]
[1750445355539,0.47288266,103420.0,103410.0,0.36994241]
[1750445355746,0.84009787,103420.0,103410.0,0.36027273]
[1750445355960,0.84009787,103420.0,103410.0,0.3699425]
[1750445356185,0.84009787,103420.0,103410.0,0.32881282]
[1750445356571,0.84009787,103420.0,103410.0,0.34048269]
[1750445356799,0.63704248,103420.0,103410.0,0.37308204]
[1750445357004,0.63704248,103420.0,103410.0,0.37424204]
[1750445357202,0.65638053,103420.0,103410.0,0.37424204]
[1750445357404,0.85943537,103420.0,103410.0,0.35374258]
[1750445357608,0.85943537,103420.0,103410.0,0.36341245]
[1750445357927,0.84976672,103420.0,103410.0,0.32314258]
[1750445358341,0.84976672,103420.0,103410.0,0.27310257]
[1750445358504,0.84976672,103420.0,103410.0,0.28277262]
[1750445359348,0.84976672,103420.0,103410.0,0.29244258]
[1750445359773,0.83042876,103420.0,103410.0,0.28277262]
[1750445360643,0.82075955,103420.0,103410.0,0.26343242]
[1750445360844,0.82075955,103420.0,103410.0,0.19739915]
[1750445361051,0.82075955,103420.0,103410.0,0.004]
[1750445362096,0.82075955,103420.0,103410.0,0.20707494]
[1750445363122,0.86411955,103420.0,103410.0,0.004]
[1750445363565,0.86490955,103420.0,103410.0,0.004]
[1750445364176,0.86411955,103420.0,103410.0,0.19740489]
[1750445364366,0.86411955,103420.0,103410.0,0.27309613]
[1750445365016,0.64885264,103420.0,103410.0,0.27309613]
[1750445365440,0.64885264,103420.0,103410.0,0.30469613]
[1750445365649,0.65852129,103420.0,103410.0,0.30469613]
[1750445365811,0.66819059,103420.0,103410.0,0.34636618]
[1750445365974,0.66819059,103420.0,103410.0,0.35603614]
[1750445366176,0.65852194,103420.0,103410.0,0.34636618]
[1750445366579,0.61516194,103420.0,103410.0,0.35721614]
[1750445366860,0.52591085,103420.0,103410.0,0.3765556]
[1750445367066,0.53557987,103420.0,103410.0,0.3765556]
[1750445367186,0.52591085,103420.0,103410.0,0.3765556]
[1750445367389,0.06269749,103420.0,103410.0,0.3765556]
[1750445367622,0.40269637,103430.0,103420.0,0.28649325]
[1750445367829,6.0143088,103430.0,103420.0,0.31632207]
[1750445368035,6.03364498,103430.0,103420.0,0.26833549]
[1750445368242,6.01430908,103430.0,103420.0,0.2780047]
[1750445368851,6.01430908,103430.0,103420.0,0.2790047]
[1750445369289,6.01430908,103430.0,103420.0,0.26933549]
[1750445369675,6.01430908,103430.0,103420.0,0.2790047]
[1750445369881,6.01430908,103430.0,103420.0,0.29834265]
[1750445370119,6.01430908,103430.0,103420.0,0.28867372]
[1750445370869,6.02336728,103430.0,103420.0,0.28867372]
[1750445371981,5.98000728,103430.0,103420.0,0.28867372]
[1750445372208,6.02336728,103430.0,103420.0,0.28867372]
[1750445372607,6.013699,103430.0,103420.0,0.26933549]
[1750445373070,6.013699,103430.0,103420.0,0.2790047]
[1750445373441,6.013699,103430.0,103420.0,0.28867382]
[1750445373882,6.013699,103430.0,103420.0,0.2790047]
[1750445374464,6.07977533,103430.0,103420.0,0.26815549]
[1750445374670,6.00403063,103430.0,103420.0,0.26815549]
[1750445375275,6.00403063,103430.0,103420.0,0.0321]
[1750445376120,6.19938063,103430.0,103420.0,0.001]
[1750445376323,6.23098063,103430.0,103420.0,0.001]
[1750445378393,6.19938063,103430.0,103420.0,0.001]
[1750445378967,6.19938478,103430.0,103420.0,0.001]
[1750445379191,6.16878478,103430.0,103420.0,0.001]
[1750445381352,6.19938478,103430.0,103420.0,0.001]
[1750445384428,6.19938943,103430.0,103420.0,0.001]
[1750445385792,6.16878943,103430.0,103420.0,0.001]
[1750445387049,6.19948943,103430.0,103420.0,0.001]
[1750445387739,6.16878943,103430.0,103420.0,0.001]
[1750445388459,6.16878946,103430.0,103420.0,0.001]
[1750445389844,6.16878965,103430.0,103420.0,0.001]
[1750445393499,6.16878968,103430.0,103420.0,0.001]
[1750445393827,6.16799968,103430.0,103420.0,0.001]
[1750445396441,6.16800077,103430.0,103420.0,0.001]
[1750445396875,6.85856894,103430.0,103420.0,0.001]
[1750445397089,6.91255873,103430.0,103420.0,0.001]
[1750445397532,6.95569621,103430.0,103420.0,0.001]
[1750445397773,0.54309458,103400.0,103390.0,0.14301895]
[1750445397935,1.04950794,103400.0,103390.0,0.14424895]
[1750445398109,0.70950794,103400.0,103390.0,0.14424895]
[1750445398807,0.80477779,103400.0,103390.0,0.14424895]
[1750445399301,0.80477779,103400.0,103390.0,0.14624895]
[1750445399532,0.80477779,103400.0,103390.0,0.14824895]
[1750445400238,0.70950794,103400.0,103390.0,0.14824895]
[1750445400455,5.75981687,103400.0,103390.0,0.0041]
[1750445400663,6.29428687,103400.0,103390.0,0.0041]
[1750445400877,6.79724695,103400.0,103390.0,0.0041]
[1750445401084,6.84949913,103400.0,103390.0,0.0041]
[1750445401298,6.94476898,103400.0,103390.0,0.0041]
[1750445401538,7.21086983,103400.0,103390.0,0.0041]
[1750445401781,7.21086983,103400.0,103390.0,0.0001]
[1750445402028,7.23096272,103400.0,103390.0,0.0001]
[1750445402258,7.23196272,103400.0,103390.0,0.0001]
[1750445403298,7.20876854,103400.0,103390.0,0.0001]
[1750445403883,0.19349845,103360.0,103350.0,0.27143063]
[1750445404148,0.99671181,103360.0,103350.0,0.07791895]
[1750445404290,6.41610517,103360.0,103350.0,0.07791895]
[1750445404503,6.6750641,103360.0,103350.0,0.0002]
[1750445404722,6.75622911,103360.0,103350.0,0.0002]
[1750445405320,6.75822911,103360.0,103350.0,0.0002]
[1750445405565,6.85149896,103360.0,103350.0,0.0002]
[1750445406203,6.88026375,103360.0,103350.0,0.0002]
[1750445406406,6.88226375,103360.0,103350.0,0.0002]
[1750445407459,6.88226375,103360.0,103350.0,0.0012]
[1750445407664,5.18982284,103350.0,103340.0,0.0001]
[1750445407879,6.45625911,103350.0,103340.0,0.0001]
[1750445408948,6.45625911,103350.0,103340.0,0.0021]
[1750445409173,6.45625911,103350.0,103340.0,0.0031]
[1750445410270,6.45625911,103350.0,103340.0,0.0011]
[1750445410271,6.40775849,103350.0,103340.0,0.0011]
[1750445410509,6.40775849,103350.0,103340.0,0.0001]
[1750445410739,6.74775849,103350.0,103340.0,0.0001]
[1750445410946,6.74875849,103350.0,103340.0,0.0001]
[1750445411770,6.74975849,103350.0,103340.0,0.0001]
[1750445411941,6.84502834,103350.0,103340.0,0.0001]
[1750445414108,6.81362834,103350.0,103340.0,0.0001]
[1750445414346,5.60517734,103350.0,103340.0,0.0658]
[1750445414581,6.2751907,103350.0,103340.0,0.0658]
[1750445415065,6.73955406,103350.0,103340.0,0.0658]
[1750445415288,6.73955406,103350.0,103340.0,0.0001]
[1750445415517,6.83482391,103350.0,103340.0,0.0001]
[1750445416203,1.00642586,103340.0,103330.0,0.05678387]
[1750445416436,1.00642586,103340.0,103330.0,0.05801387]
[1750445416661,1.00642586,103340.0,103330.0,0.05678387]
[1750445416915,1.00642586,103340.0,103330.0,0.04954829]
[1750445417611,5.96145586,103340.0,103330.0,0.04954829]
[1750445418072,6.05788479,103340.0,103330.0,0.04954829]
[1750445418305,6.05788479,103340.0,103330.0,0.0334]
[1750445418766,6.10100479,103340.0,103330.0,0.0334]
[1750445419232,6.26468479,103340.0,103330.0,0.001]
[1750445419690,6.26228479,103340.0,103330.0,0.001]
[1750445420627,6.26228479,103340.0,103330.0,0.0339]
[1750445422458,6.25742441,103340.0,103330.0,0.0339]
[1750445424785,5.79421105,103340.0,103330.0,0.0339]
[1750445425037,6.25742441,103340.0,103330.0,0.066]
[1750445425947,5.79421105,103340.0,103330.0,0.066]
[1750445426174,5.80273756,103340.0,103330.0,0.30695578]
[1750445426357,5.80273756,103340.0,103330.0,0.30815578]
[1750445426605,6.25627441,103340.0,103330.0,0.30815578]
[1750445426815,0.38553566,103340.0,103330.0,0.3275102]
[1750445427032,0.40488821,103340.0,103330.0,0.3275102]
[1750445427251,0.6177775,103340.0,103330.0,0.32751039]
[1750445427457,0.41456481,103340.0,103330.0,0.34686462]
[1750445427663,0.40488821,103340.0,103330.0,0.34686462]
[1750445427877,0.41456472,103340.0,103330.0,0.34686462]
[1750445428302,0.42424132,103340.0,103330.0,0.34686462]
[1750445428525,0.42424198,103340.0,103330.0,0.34686462]
[1750445428747,0.87777864,103340.0,103330.0,0.33718746]
[1750445429355,1.08099133,103340.0,103330.0,0.33718746]
[1750445429572,0.61777797,103340.0,103330.0,0.32751039]
[1750445429773,0.60810174,103340.0,103330.0,0.32751039]
[1750445430160,0.41456584,103340.0,103330.0,0.34686462]
[1750445430485,0.60810174,103340.0,103330.0,0.34686462]
[1750445431730,0.41456584,103340.0,103330.0,0.34686462]
[1750445431937,0.40488905,103340.0,103330.0,0.34686462]
[1750445432371,0.60810165,103340.0,103330.0,0.32751039]
[1750445432786,0.61777844,103340.0,103330.0,0.32751039]
[1750445432997,0.61777844,103340.0,103330.0,0.33718755]
[1750445433205,0.61777844,103340.0,103330.0,0.34686462]
[1750445433633,0.41456575,103340.0,103330.0,0.34686462]
[1750445433860,0.87777911,103340.0,103330.0,0.34686462]
[1750445434071,0.88684225,103340.0,103330.0,0.34686462]
[1750445434485,1.08037815,103340.0,103330.0,0.34686462]
[1750445434688,1.09850478,103340.0,103330.0,0.34686462]
[1750445435318,1.08037815,103340.0,103330.0,0.34686462]
[1750445435527,1.08037816,103340.0,103330.0,0.34686462]
[1750445436198,1.09005494,103340.0,103330.0,0.34686462]
[1750445436434,1.0809918,103340.0,103330.0,0.34686462]
[1750445437917,0.87777911,103340.0,103330.0,0.34686462]
[1750445438718,0.86810241,103340.0,103330.0,0.34686462]
[1750445438962,1.07131501,103340.0,103330.0,0.34686462]
[1750445441729,0.00967576,103350.0,103340.0,0.22256543]
[1750445441935,1.07781698,103350.0,103340.0,0.43276979]
[1750445442129,0.41141022,103350.0,103340.0,0.44244592]
[1750445442339,1.08749217,103350.0,103340.0,0.50784592]
[1750445442516,1.08749217,103350.0,103340.0,0.48849356]
[1750445442723,1.09716784,103350.0,103340.0,0.50784611]
[1750445442931,1.08749264,103350.0,103340.0,0.49816998]
[1750445443548,1.53135504,103350.0,103340.0,0.4321326]
[1750445443759,1.05846601,103350.0,103340.0,0.4224559]
[1750445443954,1.04979016,103350.0,103340.0,0.4224559]
[1750445444229,1.04979016,103350.0,103340.0,0.4244559]
[1750445444438,0.5855768,103350.0,103340.0,0.4438092]
[1750445444644,1.03973053,103350.0,103340.0,0.50395559]
[1750445444849,1.04879013,103350.0,103340.0,0.50395578]
[1750445445057,1.04879013,103350.0,103340.0,0.51363238]
[1750445445291,1.0584658,103350.0,103340.0,0.5233087]
[1750445445470,1.0494062,103350.0,103340.0,0.5233087]
[1750445445676,0.81288875,103350.0,103340.0,0.5233087]
[1750445445880,0.87523952,103350.0,103340.0,0.53298483]
[1750445446087,1.07843245,103350.0,103340.0,0.53298483]
[1750445446291,0.87523952,103350.0,103340.0,0.53298483]
[1750445446690,0.88491528,103350.0,103340.0,0.53298483]
[1750445447303,0.87523952,103350.0,103340.0,0.53298483]
[1750445447524,1.07843254,103350.0,103340.0,0.5233087]
[1750445447929,1.07843254,103350.0,103340.0,0.51363238]
[1750445448135,1.06875744,103350.0,103340.0,0.52330889]
[1750445448345,1.05908205,103350.0,103340.0,0.50395578]
[1750445448550,1.04940638,103350.0,103340.0,0.43613269]
[1750445449366,1.03973053,103350.0,103340.0,0.43613269]
[1750445449984,1.03973053,103350.0,103340.0,0.44580939]
[1750445450195,0.69973053,103350.0,103340.0,0.44580939]
[1750445450411,0.69973053,103350.0,103340.0,0.5011568]
[1750445451647,0.69973053,103350.0,103340.0,0.49148001]
[1750445452289,0.69973053,103350.0,103340.0,0.5011568]
[1750445452501,0.45024212,103350.0,103340.0,0.5011568]
[1750445454518,0.23651717,103350.0,103340.0,0.5011568]
[1750445454935,0.69973053,103350.0,103340.0,0.5011568]
[1750445455157,0.69973053,103350.0,103340.0,0.10152411]
[1750445455158,1.16294389,103350.0,103340.0,0.10152411]
[1750445455364,6.43851282,103350.0,103340.0,0.004]
[1750445455535,6.46173006,103350.0,103340.0,0.004]
[1750445455718,6.47079531,103350.0,103340.0,0.004]
[1750445455914,6.40841282,103350.0,103340.0,0.004]
[1750445456129,5.15761859,103350.0,103340.0,0.0645]
[1750445456317,5.81816053,103350.0,103340.0,0.0645]
[1750445456524,5.81816053,103350.0,103340.0,0.2580359]
[1750445456525,5.81916053,103350.0,103340.0,0.2580359]
[1750445456743,0.86413053,103350.0,103340.0,0.2677125]
[1750445456947,0.86313053,103350.0,103340.0,0.0645]
[1750445457304,0.86529053,103350.0,103340.0,0.0645]
[1750445457508,0.70189053,103350.0,103340.0,0.0311]
[1750445457714,0.2032125,103340.0,103330.0,0.0645]
[1750445457917,0.66642586,103340.0,103330.0,0.26773236]
[1750445458317,0.65674926,103340.0,103330.0,0.0645]
[1750445458564,0.65674926,103340.0,103330.0,0.25805463]
[1750445458772,0.65674926,103340.0,103330.0,0.26773236]
[1750445459190,0.65674926,103340.0,103330.0,0.25805463]
[1750445459867,0.99674926,103340.0,103330.0,0.25805463]
[1750445460101,0.99674926,103340.0,103330.0,0.26773236]
[1750445460335,0.5335359,103340.0,103330.0,0.43113236]
[1750445460557,0.99674926,103340.0,103330.0,0.43113236]
[1750445461013,0.99674926,103340.0,103330.0,0.2279]
[1750445461254,0.99790926,103340.0,103330.0,0.0331]
[1750445462154,0.99790926,103340.0,103330.0,0.23633226]
[1750445462384,1.02577897,103340.0,103330.0,0.33276783]
[1750445462595,1.02577897,103340.0,103330.0,0.2781098]
[1750445462807,0.99790926,103340.0,103330.0,0.0652]
[1750445463008,0.99790926,103340.0,103330.0,0.0331]
[1750445463409,5.95293926,103340.0,103330.0,0.0331]
[1750445463619,5.95293926,103340.0,103330.0,0.002]
[1750445464133,5.95293926,103340.0,103330.0,0.0352]
[1750445464310,5.95293926,103340.0,103330.0,0.002]
[1750445464535,6.04821819,103340.0,103330.0,0.002]
[1750445464749,6.07861819,103340.0,103330.0,0.002]
[1750445465798,6.24197819,103340.0,103330.0,0.002]
[1750445466713,6.21157819,103340.0,103330.0,0.0345]
[1750445466922,6.21157819,103340.0,103330.0,0.08180849]
[1750445467763,6.21157819,103340.0,103330.0,0.0345]
[1750445467989,6.04821819,103340.0,103330.0,0.0345]
[1750445469492,5.95177926,103340.0,103330.0,0.22805463]
[1750445469705,5.95177926,103340.0,103330.0,0.27093236]
[1750445469922,5.4885659,103340.0,103330.0,0.27093236]
[1750445470156,5.95177926,103340.0,103330.0,0.33104776]
[1750445470366,6.11513926,103340.0,103330.0,0.3407253]
[1750445470607,6.11513926,103340.0,103330.0,0.33104776]
[1750445470822,6.11513926,103340.0,103330.0,0.32137013]
[1750445471043,6.11629926,103340.0,103330.0,0.11813777]
[1750445471684,6.11629926,103340.0,103330.0,0.0677]
[1750445472136,6.2982773,103340.0,103330.0,0.002]
[1750445473652,5.83506394,103340.0,103330.0,0.002]
[1750445473865,6.2982773,103340.0,103330.0,0.002]
[1750445475585,6.2651773,103340.0,103330.0,0.002]
[1750445476009,6.2974773,103340.0,103330.0,0.002]
[1750445476850,6.3080973,103340.0,103330.0,0.002]
[1750445477084,6.2776973,103340.0,103330.0,0.002]
[1750445477296,6.3095973,103340.0,103330.0,0.002]
[1750445477525,6.36601861,103340.0,103330.0,0.002]
[1750445477740,6.3095973,103340.0,103330.0,0.002]
[1750445480677,6.3423973,103340.0,103330.0,0.002]
[1750445481710,6.80561066,103340.0,103330.0,0.002]
[1750445481932,6.3423973,103340.0,103330.0,0.002]
[1750445482128,6.80608095,103340.0,103330.0,0.002]
[1750445482501,6.9013508,103340.0,103330.0,0.002]
[1750445483079,6.91041163,103340.0,103330.0,0.002]
[1750445483656,6.91141163,103340.0,103330.0,0.002]
[1750445483847,6.91341163,103340.0,103330.0,0.002]
[1750445484937,6.96735054,103340.0,103330.0,0.002]
[1750445485142,6.98188908,103340.0,103330.0,0.002]
[1750445485348,6.51867572,103340.0,103330.0,0.002]
[1750445485786,6.42340587,103340.0,103330.0,0.002]
[1750445486007,5.67351166,103340.0,103330.0,0.002]
[1750445486235,6.29148611,103340.0,103330.0,0.002]
[1750445486644,6.28242759,103340.0,103330.0,0.002]
[1750445487082,6.28160759,103340.0,103330.0,0.0338]
[1750445487284,6.07372759,103340.0,103330.0,0.0645]
[1750445487492,5.91848848,103340.0,103330.0,0.09257313]
[1750445487708,5.91844848,103340.0,103330.0,0.09257313]
[1750445488542,5.91844848,103340.0,103330.0,0.06568]
[1750445489384,6.25844848,103340.0,103330.0,0.06568]
[1750445491482,5.76171365,103340.0,103330.0,0.28826668]
[1750445491714,0.00347029,103340.0,103330.0,0.36598563]
[1750445492133,0.00347029,103340.0,103330.0,0.53102563]
[1750445492338,0.00247029,103340.0,103330.0,0.53102563]
[1750445493008,0.01214633,103340.0,103330.0,0.53102563]
[1750445493265,0.00247029,103340.0,103330.0,0.53102563]
[1750445493480,0.02182247,103340.0,103330.0,0.53102563]
[1750445493676,0.69592465,103340.0,103330.0,0.44354961]
[1750445493891,0.69592465,103340.0,103330.0,0.44554961]
[1750445494095,0.50238875,103340.0,103330.0,0.46490403]
[1750445494306,0.49271215,103340.0,103330.0,0.4745811]
[1750445494508,0.50238866,103340.0,103330.0,0.4745811]
[1750445494743,0.48303583,103340.0,103330.0,0.4765811]
[1750445494928,0.46368365,103340.0,103330.0,0.54339649]
[1750445495131,0.4733596,103340.0,103330.0,0.54339649]
[1750445495337,0.00047029,103340.0,103330.0,0.54339649]
[1750445495758,0.00047029,103340.0,103330.0,0.63867542]
[1750445496412,0.00047029,103340.0,103330.0,0.70867542]
[1750445497920,0.00047029,103340.0,103330.0,1.17188878]
[1750445498126,0.00047029,103340.0,103330.0,0.70867542]
[1750445499568,0.00047029,103340.0,103330.0,1.17188878]
[1750445499874,0.00047029,103340.0,103330.0,0.70867542]
[1750445500269,0.00047029,103340.0,103330.0,0.64186003]
[1750445501380,0.28021695,103350.0,103340.0,0.25394515]
[1750445501594,0.28035799,103350.0,103340.0,0.25394515]
[1750445501812,0.49322565,103350.0,103340.0,0.24426902]
[1750445502253,0.47387516,103350.0,103340.0,0.0302]
[1750445502524,1.13943626,103350.0,103340.0,0.0302]
[1750445502727,0.2032126,103340.0,103330.0,0.41422971]
[1750445502967,0.66642596,103340.0,103330.0,0.41422971]
[1750445503189,0.66642596,103340.0,103330.0,0.41222971]
[1750445503621,0.66642596,103340.0,103330.0,0.39287463]
[1750445503830,0.65674926,103340.0,103330.0,0.40255236]
[1750445504040,0.65674926,103340.0,103330.0,0.40355236]
[1750445504247,0.65674926,103340.0,103330.0,0.20032]
[1750445504451,0.65674926,103340.0,103330.0,0.42877463]
[1750445504629,0.65674926,103340.0,103330.0,0.44812962]
[1750445505067,0.65674926,103340.0,103330.0,0.42877463]
[1750445505280,0.65674926,103340.0,103330.0,0.43845236]
[1750445505484,0.65674926,103340.0,103330.0,0.45780753]
[1750445505867,0.65674926,103340.0,103330.0,0.44812999]
[1750445506448,0.65674926,103340.0,103330.0,0.45780753]
[1750445506647,0.7446359,103340.0,103330.0,0.28210999]
[1750445506829,0.7446359,103340.0,103330.0,0.44678999]
[1750445507032,0.65674926,103340.0,103330.0,0.45764744]
[1750445507235,0.65674926,103340.0,103330.0,0.46732479]
[1750445507642,0.66642596,103340.0,103330.0,0.47700205]
[1750445507842,0.67610238,103340.0,103330.0,0.47700205]
[1750445508046,0.67610238,103340.0,103330.0,0.47700148]
[1750445508261,0.48256648,103340.0,103330.0,0.47700148]
[1750445508466,0.48256591,103340.0,103330.0,0.47700092]
[1750445508680,0.66654696,103350.0,103340.0,0.20321269]
[1750445508895,0.66654696,103350.0,103340.0,0.27458929]
[1750445509303,0.66654696,103350.0,103340.0,0.26491269]
[1750445509543,0.66654696,103350.0,103340.0,0.2757692]
[1750445509746,0.68589848,103350.0,103340.0,0.28544552]
[1750445510262,0.49238131,103350.0,103340.0,0.29394194]
[1750445510397,0.00981605,103350.0,103340.0,0.37110143]
[1750445510596,0.00014104,103350.0,103340.0,0.37110143]
[1750445511178,0.00014104,103350.0,103340.0,0.83431479]
[1750445511559,0.00981605,103350.0,103340.0,0.37110143]
[1750445511826,0.01949115,103350.0,103340.0,0.37110143]
[1750445512057,0.02916654,103350.0,103340.0,0.37110143]
[1750445512190,0.01949115,103350.0,103340.0,0.37110143]
[1750445512425,0.02916635,103350.0,103340.0,0.37110143]
[1750445512622,0.51173057,103350.0,103340.0,0.30479807]
[1750445512821,0.502055,103350.0,103340.0,0.46931807]
[1750445513029,0.51173048,103350.0,103340.0,0.46931807]
[1750445513226,0.502055,103350.0,103340.0,0.46931807]
[1750445513429,0.03016635,103350.0,103340.0,0.46931807]
[1750445513796,0.5020551,103350.0,103340.0,0.46931807]
[1750445513980,0.03884174,103350.0,103340.0,0.47131807]
[1750445514403,0.03884164,103350.0,103340.0,0.47331807]
[1750445514904,0.04851712,103350.0,103340.0,0.47331807]
[1750445515115,0.03884164,103350.0,103340.0,0.47331807]
[1750445516107,0.04851712,103350.0,103340.0,0.47331807]
[1750445516290,0.02916635,103350.0,103340.0,0.47331807]
[1750445516497,0.01949115,103350.0,103340.0,0.47331807]
[1750445517082,0.02916635,103350.0,103340.0,0.47331807]
[1750445517288,0.03884174,103350.0,103340.0,0.47331807]
[1750445517943,0.00014104,103350.0,103340.0,1.0032187]
[1750445518154,0.00014104,103350.0,103340.0,1.09849763]
[1750445518365,0.00014104,103350.0,103340.0,1.16849763]
[1750445519015,0.00014104,103350.0,103340.0,0.70528427]
[1750445519229,0.00014104,103350.0,103340.0,1.16849763]
[1750445520063,0.00014104,103350.0,103340.0,1.18303848]
[1750445527876,0.00014104,103350.0,103340.0,1.11303848]
[1750445528547,0.88296046,103380.0,103370.0,0.19347973]
[1750445528744,1.10674988,103380.0,103370.0,0.21573007]
[1750445528973,1.10674988,103380.0,103370.0,0.19347973]
[1750445529314,1.09707711,103380.0,103370.0,0.19347973]
[1750445529516,0.0096737,103370.0,103360.0,0.44756226]
[1750445529716,0.48256067,103370.0,103360.0,0.44756226]
[1750445529867,0.49223409,103370.0,103360.0,0.45723662]
[1750445530478,0.49423409,103370.0,103360.0,0.45723662]
[1750445530698,0.48456001,103370.0,103360.0,0.46691088]
[1750445531110,0.47588659,103370.0,103360.0,0.53430497]
[1750445531546,0.47488659,103370.0,103360.0,0.53430497]
[1750445531754,0.48256001,103370.0,103360.0,0.53630497]
[1750445531966,0.49223362,103370.0,103360.0,0.47014088]
[1750445532175,0.48255992,103370.0,103360.0,0.47014088]
[1750445532816,0.49223343,103370.0,103360.0,0.47214088]
[1750445533452,0.02523358,103380.0,103370.0,0.25350046]
[1750445533671,0.05884128,103380.0,103370.0,0.28633046]
[1750445534745,0.06851348,103380.0,103370.0,0.28633046]
[1750445536023,0.05884128,103380.0,103370.0,0.28633046]
[1750445536232,0.05884128,103380.0,103370.0,0.28833046]
[1750445536456,0.05884128,103380.0,103370.0,0.29033046]
[1750445536884,0.05884128,103380.0,103370.0,0.35705218]
[1750445537090,0.01556128,103380.0,103370.0,0.35705218]
[1750445537518,0.88647003,103390.0,103380.0,0.2224795]
[1750445537723,0.54661109,103390.0,103380.0,0.3861595]
[1750445537930,0.53693907,103390.0,103380.0,0.4182595]
[1750445538158,0.54537109,103390.0,103380.0,0.4182595]
[1750445538378,0.55939452,103390.0,103380.0,0.4182595]
[1750445538586,0.5497225,103390.0,103380.0,0.4182595]
[1750445538807,0.55939452,103390.0,103380.0,0.4182595]
[1750445538983,0.5497225,103390.0,103380.0,0.4182595]
[1750445539235,0.5497225,103390.0,103380.0,0.49335634]
[1750445539655,0.08650905,103390.0,103380.0,0.53562873]
[1750445539878,0.54972241,103390.0,103380.0,0.53562873]
[1750445540085,0.54005067,103390.0,103380.0,0.53562873]
[1750445540308,0.54972241,103390.0,103380.0,0.53562873]
[1750445540599,0.54005058,103390.0,103380.0,0.53562873]
[1750445540807,0.55939396,103390.0,103380.0,0.52718634]
[1750445541009,0.55939387,103390.0,103380.0,0.53685882]
[1750445541439,0.55939387,103390.0,103380.0,0.48691329]
[1750445541647,0.56906579,103390.0,103380.0,0.48568329]
[1750445541854,0.75283682,103390.0,103380.0,0.39124101]
[1750445542056,0.76374893,103390.0,103380.0,0.41058664]
[1750445542264,0.56063452,103390.0,103380.0,0.41058664]
[1750445542525,0.76374893,103390.0,103380.0,0.41058664]
[1750445542945,6.47593647,103390.0,103380.0,0.003]
[1750445543157,6.91120632,103390.0,103380.0,0.003]
[1750445543364,6.94026532,103390.0,103380.0,0.003]
[1750445543574,6.96342869,103390.0,103380.0,0.003]
[1750445543785,6.96342869,103390.0,103380.0,0.002]
[1750445543990,6.97248142,103390.0,103380.0,0.002]
[1750445544202,6.99058689,103390.0,103380.0,0.002]
[1750445544411,6.98091478,103390.0,103360.0,0.20317337]
[1750445544617,0.71877392,103370.0,103360.0,0.20317337]
[1750445545022,0.71877392,103370.0,103360.0,0.21284819]
[1750445545231,0.71877392,103370.0,103360.0,0.20317337]
[1750445546023,0.70910059,103370.0,103360.0,0.20517337]
[1750445546474,0.70910059,103370.0,103360.0,0.19549845]
[1750445546683,0.69942698,103370.0,103360.0,0.19549845]
[1750445547444,0.69942698,103370.0,103360.0,0.20617337]
[1750445547649,0.86290698,103370.0,103360.0,0.19649845]
[1750445548107,0.86290698,103370.0,103360.0,0.20617337]
[1750445548321,0.86290698,103370.0,103360.0,0.21584819]
[1750445548471,0.86290698,103370.0,103360.0,0.20617337]
[1750445548872,0.86290698,103370.0,103360.0,0.19649845]
[1750445549135,0.86290698,103370.0,103360.0,0.20617327]
[1750445549870,0.86290698,103370.0,103360.0,0.19649845]
[1750445550409,0.86290698,103370.0,103360.0,0.003]
[1750445551451,0.86290698,103370.0,103360.0,0.19649845]
[1750445552262,0.86290698,103370.0,103360.0,0.20617337]
[1750445552464,0.86290698,103370.0,103360.0,0.19649845]
[1750445552781,0.90618698,103370.0,103360.0,0.19649845]
[1750445554030,0.90618698,103370.0,103360.0,0.003]
[1750445555273,0.90550698,103370.0,103360.0,0.003]
[1750445558988,6.08198576,103370.0,103360.0,0.003]
[1750445559199,6.42198576,103370.0,103360.0,0.003]
[1750445559447,6.32347461,103370.0,103360.0,0.003]
[1750445559651,6.33252749,103370.0,103360.0,0.003]
[1750445559870,0.22256486,103340.0,103330.0,0.28808688]
[1750445560082,0.72873822,103340.0,103330.0,0.26873217]
[1750445560294,0.70938586,103340.0,103330.0,0.26873236]
[1750445560496,0.70086926,103340.0,103330.0,0.05510418]
[1750445561115,0.70091625,103340.0,103330.0,0.05510418]
[1750445561529,0.73341625,103340.0,103330.0,0.25833654]
[1750445561727,0.70091625,103340.0,103330.0,0.05510418]
[1750445562231,0.23770289,103340.0,103330.0,0.26801408]
[1750445562465,0.69975625,103340.0,103330.0,0.34289153]
[1750445562724,0.70943285,103340.0,103330.0,0.34413153]
[1750445562950,0.70943285,103340.0,103330.0,0.29002735]
[1750445563230,0.70943285,103340.0,103330.0,0.29202735]
[1750445563853,0.70943285,103340.0,103330.0,0.3017047]
[1750445564274,0.52557327,103340.0,103330.0,0.31014186]
[1750445564479,0.52557327,103340.0,103330.0,0.3101412]
[1750445564480,0.71910917,103340.0,103330.0,0.3101412]
[1750445564606,0.72878596,103340.0,103330.0,0.3113812]
[1750445565013,0.72878596,103340.0,103330.0,0.30170413]
[1750445565461,0.72878596,103340.0,103330.0,0.29202697]
[1750445566038,1.05910964,103340.0,103330.0,0.003]
[1750445566241,1.06026964,103340.0,103330.0,0.003]
[1750445566434,1.05059304,103340.0,103330.0,0.003]
[1750445566636,1.05059304,103340.0,103330.0,0.19655463]
[1750445566862,0.58737968,103340.0,103330.0,0.20623217]
[1750445567040,1.05059304,103340.0,103330.0,0.20623217]
[1750445567500,1.05059304,103340.0,103330.0,0.20623236]
[1750445568131,1.05059304,103340.0,103330.0,0.31306792]
[1750445568339,1.05059304,103340.0,103330.0,0.32274527]
[1750445568549,1.04943304,103340.0,103330.0,0.33242253]
[1750445568757,1.04943304,103340.0,103330.0,0.35434527]
[1750445569396,1.04943304,103340.0,103330.0,0.34466792]
[1750445571349,0.86557346,103340.0,103330.0,0.36402234]
[1750445571555,1.07846229,103340.0,103330.0,0.36402234]
[1750445571986,1.08813908,103340.0,103330.0,0.36402234]
[1750445572189,1.07846285,103340.0,103330.0,0.35434527]
[1750445572401,1.07846285,103340.0,103330.0,0.36402253]
[1750445572605,0.86557346,103340.0,103330.0,0.3736996]
[1750445572830,1.06878615,103340.0,103330.0,0.3736996]
[1750445573040,1.06878615,103340.0,103330.0,0.36402253]
[1750445573874,1.06878615,103340.0,103330.0,0.37369969]
[1750445574090,1.06878615,103340.0,103330.0,0.37493969]
[1750445574308,1.06878615,103340.0,103330.0,0.31028158]
[1750445576886,0.87525025,103340.0,103330.0,0.31028158]